[Event "Live Chess"]
[Site "Chess.com"]
[Date "2024.06.02"]
[Round "-"]
[White "Rusty_Bridges"]
[Black "NebodarMatevich"]
[Result "0-1"]
[WhiteElo "1459"]
[BlackElo "1568"]
[TimeControl "300"]
[EndTime "16:22:02 PDT"]
[Termination "NebodarMatevich won by resignation"]

1. e4 {[%clk 0:04:53.2]} 1... d5 {[%clk 0:04:59.4]} 2. exd5 {[%clk 0:04:52]}
2... Qxd5 {[%clk 0:04:59.3]} 3. Nc3 {[%clk 0:04:51.3]} 3... Qd6 {[%clk
0:04:58.8]} 4. d4 {[%clk 0:04:50.7]} 4... Nf6 {[%clk 0:04:58.1]} 5. Nf3 {[%clk
0:04:50]} 5... a6 {[%clk 0:04:57.7]} 6. Be2 {[%clk 0:04:49.3]} 6... Bf5 {[%clk
0:04:55.5]} 7. O-O {[%clk 0:04:47.9]} 7... Nc6 {[%clk 0:04:55.1]} 8. a3 {[%clk
0:04:41.5]} 8... O-O-O {[%clk 0:04:54]} 9. b4 {[%clk 0:04:38.4]} 9... Nxd4
{[%clk 0:04:52.4]} 10. Nxd4 {[%clk 0:04:34.1]} 10... Qxd4 {[%clk 0:04:51.9]} 11.
Qxd4 {[%clk 0:04:31]} 11... Rxd4 {[%clk 0:04:50.9]} 12. Be3 {[%clk 0:04:27.4]}
12... Rd8 {[%clk 0:04:45.1]} 13. Rac1 {[%clk 0:04:12.8]} 13... e6 {[%clk
0:04:40.3]} 14. Bf3 {[%clk 0:04:05.7]} 14... Bd6 {[%clk 0:04:25.7]} 15. Ne2
{[%clk 0:04:02.6]} 15... Nd5 {[%clk 0:04:13.5]} 16. Bd2 {[%clk 0:03:53.7]} 16...
g5 {[%clk 0:04:08.3]} 17. g3 {[%clk 0:03:50.1]} 17... g4 {[%clk 0:04:06.3]} 18.
Bg2 {[%clk 0:03:48.2]} 18... h5 {[%clk 0:04:05.2]} 19. c4 {[%clk 0:03:46.6]}
19... Nf6 {[%clk 0:03:54.2]} 20. Bg5 {[%clk 0:03:25.6]} 20... Be7 {[%clk
0:03:52.9]} 21. Nf4 {[%clk 0:03:04.2]} 21... e5 {[%clk 0:03:25]} 22. Nd3 {[%clk
0:02:51.9]} 22... Bxd3 {[%clk 0:03:21.2]} 23. c5 {[%clk 0:02:46.2]} 23... e4
{[%clk 0:03:19.6]} 0-1

[Event "Live Chess"]
[Site "Chess.com"]
[Date "2024.06.02"]
[Round "-"]
[White "MagnersCarlsberg2870"]
[Black "TheSmoulderingMaster"]
[Result "1-0"]
[WhiteElo "1781"]
[BlackElo "1741"]
[TimeControl "300"]
[EndTime "16:22:11 PDT"]
[Termination "MagnersCarlsberg2870 won by resignation"]

1. d4 {[%clk 0:04:57.4]} 1... Nf6 {[%clk 0:04:57.4]} 2. Nf3 {[%clk 0:04:56.4]}
2... g6 {[%clk 0:04:56.5]} 3. Nc3 {[%clk 0:04:55.5]} 3... Bg7 {[%clk 0:04:55.6]}
4. e4 {[%clk 0:04:54.7]} 4... O-O {[%clk 0:04:54.9]} 5. Bc4 {[%clk 0:04:53]}
5... d6 {[%clk 0:04:52.4]} 6. h3 {[%clk 0:04:52.2]} 6... Nbd7 {[%clk 0:04:45.3]}
7. e5 {[%clk 0:04:50.2]} 7... dxe5 {[%clk 0:04:44.1]} 8. dxe5 {[%clk 0:04:49.5]}
8... Nh5 {[%clk 0:04:38.2]} 9. g4 {[%clk 0:04:47.7]} 9... Nxe5 {[%clk
0:04:32.7]} 10. Nxe5 {[%clk 0:04:31.2]} 10... Qxd1+ {[%clk 0:04:29.4]} 11. Kxd1
{[%clk 0:04:20.5]} 11... Bxe5 {[%clk 0:04:28.2]} 12. gxh5 {[%clk 0:04:18.5]}
12... Bf5 {[%clk 0:04:15.8]} 13. Bh6 {[%clk 0:04:08.7]} 13... Bg7 {[%clk
0:04:12.8]} 14. Bxg7 {[%clk 0:04:07.2]} 14... Kxg7 {[%clk 0:04:11.4]} 15. Bd3
{[%clk 0:04:01.4]} 15... Rad8 {[%clk 0:04:08.9]} 16. Ke2 {[%clk 0:04:00.3]}
16... e6 {[%clk 0:04:06.1]} 17. hxg6 {[%clk 0:03:55.4]} 17... hxg6 {[%clk
0:04:02.3]} 18. Nb5 {[%clk 0:03:48.2]} 18... c6 {[%clk 0:03:59.8]} 19. Nc3
{[%clk 0:03:41.7]} 19... Rh8 {[%clk 0:03:56.3]} 20. Bxf5 {[%clk 0:03:40]} 20...
gxf5 {[%clk 0:03:54.8]} 21. Rag1+ {[%clk 0:03:37.6]} 21... Kf6 {[%clk
0:03:53.4]} 22. h4 {[%clk 0:03:25.2]} 22... Rh5 {[%clk 0:03:50.3]} 23. Ke3
{[%clk 0:03:15.6]} 23... Rdh8 {[%clk 0:03:46.6]} 24. Ne2 {[%clk 0:03:14.5]}
24... Rxh4 {[%clk 0:03:42]} 25. Rxh4 {[%clk 0:03:13.4]} 25... Rxh4 {[%clk
0:03:41.1]} 26. Nd4 {[%clk 0:02:59.2]} 26... Re4+ {[%clk 0:03:38.2]} 27. Kd3
{[%clk 0:02:56.2]} 27... Ke5 {[%clk 0:03:36.8]} 28. Nf3+ {[%clk 0:02:50.7]}
28... Kd5 {[%clk 0:03:35.4]} 29. Rg7 {[%clk 0:02:48.3]} 29... e5 {[%clk
0:03:24.2]} 30. Rxf7 {[%clk 0:02:43.3]} 30... Rb4 {[%clk 0:03:22.7]} 31. Rxf5
{[%clk 0:02:36.1]} 31... Ke6 {[%clk 0:03:21.4]} 32. Rxe5+ {[%clk 0:02:35]} 32...
Kd6 {[%clk 0:03:20.5]} 33. Kc3 {[%clk 0:02:30.4]} 33... Rf4 {[%clk 0:03:17]} 34.
Re3 {[%clk 0:02:28.8]} 34... b5 {[%clk 0:03:14.7]} 35. Rd3+ {[%clk 0:02:26.8]}
35... Kc7 {[%clk 0:03:13]} 36. b3 {[%clk 0:02:22.9]} 36... a5 {[%clk 0:03:11.6]}
37. Kd2 {[%clk 0:02:13.4]} 37... Kb6 {[%clk 0:03:11.5]} 38. Ke3 {[%clk
0:02:12.2]} 38... Rg4 {[%clk 0:03:10.1]} 39. Rd6 {[%clk 0:02:08.7]} 39... Kc5
{[%clk 0:03:06.4]} 40. Rxc6+ {[%clk 0:02:07.1]} 40... Kd5 {[%clk 0:03:01.1]} 41.
c4+ {[%clk 0:02:00.5]} 41... bxc4 {[%clk 0:02:59.5]} 42. bxc4+ {[%clk
0:01:58.3]} 42... Rxc4 {[%clk 0:02:53.6]} 43. Rxc4 {[%clk 0:01:55]} 1-0

[Event "Live Chess"]
[Site "Chess.com"]
[Date "2024.06.02"]
[Round "-"]
[White "AlexanderMatlak"]
[Black "raclement"]
[Result "1-0"]
[WhiteElo "2393"]
[BlackElo "1724"]
[TimeControl "300"]
[EndTime "16:22:18 PDT"]
[Termination "AlexanderMatlak won by resignation"]

1. e4 {[%clk 0:04:56.8]} 1... c5 {[%clk 0:04:56.9]} 2. Be2 {[%clk 0:04:55.6]}
2... g6 {[%clk 0:04:52.6]} 3. f4 {[%clk 0:04:54.8]} 3... Bg7 {[%clk 0:04:51.3]}
4. Nf3 {[%clk 0:04:53.9]} 4... Nc6 {[%clk 0:04:47.5]} 5. O-O {[%clk 0:04:52.9]}
5... Nf6 {[%clk 0:04:45.9]} 6. d3 {[%clk 0:04:47]} 6... O-O {[%clk 0:04:43.6]}
7. c3 {[%clk 0:04:46.5]} 7... d5 {[%clk 0:04:39.6]} 8. e5 {[%clk 0:04:45.4]}
8... Ng4 {[%clk 0:04:34.7]} 9. Na3 {[%clk 0:04:42.1]} 9... a6 {[%clk 0:04:30.5]}
10. Nc2 {[%clk 0:04:39.4]} 10... e6 {[%clk 0:04:25.9]} 11. Ne3 {[%clk
0:04:24.7]} 11... Nxe3 {[%clk 0:04:22]} 12. Bxe3 {[%clk 0:04:24.6]} 12... d4
{[%clk 0:04:15.3]} 13. Bf2 {[%clk 0:04:23.7]} 13... Re8 {[%clk 0:03:57.9]} 14.
c4 {[%clk 0:04:14.2]} 14... b5 {[%clk 0:03:50.7]} 15. b3 {[%clk 0:04:12]} 15...
bxc4 {[%clk 0:03:48]} 16. bxc4 {[%clk 0:04:11.9]} 16... Rb8 {[%clk 0:03:41.6]}
17. Bh4 {[%clk 0:04:10.8]} 17... Qd7 {[%clk 0:03:32.4]} 18. Qe1 {[%clk
0:04:04.5]} 18... Nb4 {[%clk 0:03:27.6]} 19. Qd2 {[%clk 0:03:26.6]} 19... Bb7
{[%clk 0:03:25.1]} 20. Bf6 {[%clk 0:03:18.6]} 20... Bxf6 {[%clk 0:03:04]} 21.
exf6 {[%clk 0:03:18.5]} 21... Qd8 {[%clk 0:03:02.7]} 22. Ne5 {[%clk 0:03:15.7]}
22... Nc6 {[%clk 0:02:49.2]} 23. Rab1 {[%clk 0:03:06]} 23... Bc8 {[%clk
0:02:42.8]} 24. Nxc6 {[%clk 0:03:03.6]} 24... Qc7 {[%clk 0:02:28.8]} 25. Nxb8
{[%clk 0:03:00.5]} 1-0

[Event "Live Chess"]
[Site "Chess.com"]
[Date "2024.06.02"]
[Round "-"]
[White "jimwad"]
[Black "katoma"]
[Result "0-1"]
[WhiteElo "1333"]
[BlackElo "2022"]
[TimeControl "300"]
[EndTime "16:22:26 PDT"]
[Termination "katoma won by checkmate"]

1. c4 {[%clk 0:04:58.4]} 1... e5 {[%clk 0:04:57.8]} 2. g3 {[%clk 0:04:57.6]}
2... f5 {[%clk 0:04:55.3]} 3. Bg2 {[%clk 0:04:56.8]} 3... Nf6 {[%clk 0:04:54.5]}
4. Nc3 {[%clk 0:04:56]} 4... g6 {[%clk 0:04:53.6]} 5. e3 {[%clk 0:04:55.2]} 5...
Bg7 {[%clk 0:04:52]} 6. Nge2 {[%clk 0:04:54.4]} 6... O-O {[%clk 0:04:50.6]} 7.
O-O {[%clk 0:04:53.5]} 7... d6 {[%clk 0:04:46.7]} 8. d4 {[%clk 0:04:51.4]} 8...
e4 {[%clk 0:04:44.1]} 9. b4 {[%clk 0:04:42.4]} 9... Be6 {[%clk 0:04:27.7]} 10.
d5 {[%clk 0:04:38.1]} 10... Bf7 {[%clk 0:04:26.4]} 11. Bb2 {[%clk 0:04:36.8]}
11... g5 {[%clk 0:04:24.3]} 12. Nd4 {[%clk 0:04:29.4]} 12... Qc8 {[%clk
0:04:09.8]} 13. Rc1 {[%clk 0:04:03.1]} 13... c5 {[%clk 0:04:06]} 14. bxc5 {[%clk
0:04:00.6]} 14... dxc5 {[%clk 0:04:04.9]} 15. Ndb5 {[%clk 0:03:50.2]} 15... Qd7
{[%clk 0:03:58.5]} 16. a4 {[%clk 0:03:42.9]} 16... a6 {[%clk 0:03:54.7]} 17. Na3
{[%clk 0:03:34.8]} 17... Bh5 {[%clk 0:03:43]} 18. Qd2 {[%clk 0:03:28.6]} 18...
Bf3 {[%clk 0:03:30.9]} 19. Bxf3 {[%clk 0:03:26.8]} 19... exf3 {[%clk 0:03:28.9]}
20. Nc2 {[%clk 0:03:22.4]} 20... f4 {[%clk 0:03:23.2]} 21. exf4 {[%clk 0:03:17]}
21... Qh3 {[%clk 0:03:18.5]} 22. Ne1 {[%clk 0:03:14.1]} 22... Ng4 {[%clk
0:03:13.7]} 23. Nxf3 {[%clk 0:03:08.7]} 23... gxf4 {[%clk 0:03:11.5]} 24. Ne2
{[%clk 0:02:43.3]} 24... fxg3 {[%clk 0:02:59.2]} 25. Nxg3 {[%clk 0:02:29.9]}
25... Rxf3 {[%clk 0:02:53.9]} 26. Bxg7 {[%clk 0:02:24.9]} 26... Qxh2# {[%clk
0:02:51.9]} 0-1

[Event "Live Chess"]
[Site "Chess.com"]
[Date "2024.06.02"]
[Round "-"]
[White "TigerTank70"]
[Black "booktrunk"]
[Result "1-0"]
[WhiteElo "2238"]
[BlackElo "1481"]
[TimeControl "300"]
[EndTime "16:22:40 PDT"]
[Termination "TigerTank70 won by resignation"]

1. e4 {[%clk 0:04:57.6]} 1... b6 {[%clk 0:04:57.1]} 2. d4 {[%clk 0:04:56.3]}
2... Bb7 {[%clk 0:04:55.6]} 3. Nc3 {[%clk 0:04:56]} 3... e6 {[%clk 0:04:45.2]}
4. Nf3 {[%clk 0:04:54.3]} 4... h6 {[%clk 0:04:43.6]} 5. Bb5 {[%clk 0:04:51.6]}
5... a6 {[%clk 0:04:38.3]} 6. Ba4 {[%clk 0:04:50.9]} 6... Nf6 {[%clk 0:04:36.7]}
7. e5 {[%clk 0:04:48.9]} 7... Nd5 {[%clk 0:04:35.1]} 8. Nxd5 {[%clk 0:04:42.5]}
8... Bxd5 {[%clk 0:04:35]} 9. Bb3 {[%clk 0:04:41.8]} 9... Bxb3 {[%clk 0:04:33]}
10. axb3 {[%clk 0:04:41.7]} 10... f6 {[%clk 0:04:32]} 11. Qd3 {[%clk 0:04:38.8]}
11... f5 {[%clk 0:04:28]} 12. d5 {[%clk 0:04:37.6]} 12... Qe7 {[%clk 0:04:22.6]}
13. O-O {[%clk 0:04:32.6]} 13... exd5 {[%clk 0:04:20.7]} 14. Qxd5 {[%clk
0:04:28.1]} 14... c6 {[%clk 0:04:18.9]} 15. Qd3 {[%clk 0:04:21.6]} 15... g6
{[%clk 0:04:13.7]} 16. Be3 {[%clk 0:04:16.8]} 16... Bg7 {[%clk 0:04:11.3]} 17.
Bxb6 {[%clk 0:04:13.7]} 17... c5 {[%clk 0:04:08.5]} 18. Bc7 {[%clk 0:04:11.3]}
18... Nc6 {[%clk 0:04:05.5]} 19. Rxa6 {[%clk 0:04:07.2]} 19... Rxa6 {[%clk
0:04:02]} 20. Qxa6 {[%clk 0:04:05.9]} 20... O-O {[%clk 0:04:01.4]} 21. Bd6
{[%clk 0:04:04.7]} 21... Qe6 {[%clk 0:03:55.1]} 22. Bxf8 {[%clk 0:04:02.5]}
22... Kxf8 {[%clk 0:03:55]} 23. Qc8+ {[%clk 0:03:59.7]} 23... Kf7 {[%clk
0:03:51.3]} 24. Rd1 {[%clk 0:03:57.6]} 24... Ke7 {[%clk 0:03:48.6]} 25. Rd6
{[%clk 0:03:42.6]} 25... Qxd6 {[%clk 0:03:34.8]} 26. exd6+ {[%clk 0:03:40.1]}
26... Kxd6 {[%clk 0:03:34.7]} 27. Qg8 {[%clk 0:03:37.1]} 27... Bxb2 {[%clk
0:03:31.8]} 28. Qxg6+ {[%clk 0:03:35.8]} 28... Kc7 {[%clk 0:03:30.1]} 29. Qxf5
{[%clk 0:03:32.8]} 1-0

[Event "Live Chess"]
[Site "Chess.com"]
[Date "2024.06.02"]
[Round "-"]
[White "educatedlad"]
[Black "Duke_of_Bebington"]
[Result "1-0"]
[WhiteElo "1717"]
[BlackElo "1638"]
[TimeControl "300"]
[EndTime "16:23:24 PDT"]
[Termination "educatedlad won by resignation"]

1. d4 {[%clk 0:04:59.1]} 1... Nf6 {[%clk 0:04:56.9]} 2. Bg5 {[%clk 0:04:57.9]}
2... Ne4 {[%clk 0:04:55.2]} 3. Bf4 {[%clk 0:04:56.4]} 3... g5 {[%clk 0:04:52.1]}
4. Bc1 {[%clk 0:04:54.2]} 4... Bg7 {[%clk 0:04:49.9]} 5. f3 {[%clk 0:04:53]}
5... Nd6 {[%clk 0:04:32.3]} 6. Bxg5 {[%clk 0:04:49.7]} 6... b6 {[%clk
0:04:30.2]} 7. e4 {[%clk 0:04:47.1]} 7... e5 {[%clk 0:04:28.7]} 8. Bxd8 {[%clk
0:04:45.1]} 8... Kxd8 {[%clk 0:04:20.8]} 9. dxe5 {[%clk 0:04:40.8]} 9... Bxe5
{[%clk 0:04:19.3]} 10. Nc3 {[%clk 0:04:30.9]} 10... Nc6 {[%clk 0:04:15.9]} 11.
Qd5 {[%clk 0:04:28.5]} 11... Bb7 {[%clk 0:04:12.6]} 12. Bc4 {[%clk 0:04:19.6]}
12... Rf8 {[%clk 0:03:58.6]} 13. Qd2 {[%clk 0:04:12.3]} 13... Nxc4 {[%clk
0:03:51.3]} 14. Qg5+ {[%clk 0:04:10.2]} 14... Kc8 {[%clk 0:03:44.1]} 15. O-O-O
{[%clk 0:04:07.9]} 15... Nd8 {[%clk 0:03:24.9]} 16. b3 {[%clk 0:04:03]} 16...
Bxc3 {[%clk 0:03:23.4]} 17. bxc4 {[%clk 0:04:00.4]} 17... Ne6 {[%clk 0:03:14.2]}
18. Qf5 {[%clk 0:03:42.2]} 18... Ba6 {[%clk 0:03:07.6]} 19. Ne2 {[%clk
0:03:36.9]} 19... Bg7 {[%clk 0:03:00.4]} 20. Qd5 {[%clk 0:03:34.7]} 1-0

[Event "Live Chess"]
[Site "Chess.com"]
[Date "2024.06.02"]
[Round "-"]
[White "NeilDruggan73"]
[Black "stevochess11"]
[Result "1-0"]
[WhiteElo "1747"]
[BlackElo "1709"]
[TimeControl "300"]
[EndTime "16:23:52 PDT"]
[Termination "NeilDruggan73 won by resignation"]

1. d4 {[%clk 0:04:56.6]} 1... c5 {[%clk 0:04:54.1]} 2. d5 {[%clk 0:04:53.1]}
2... b5 {[%clk 0:04:50]} 3. Nf3 {[%clk 0:04:41.1]} 3... Nf6 {[%clk 0:04:47.6]}
4. g3 {[%clk 0:04:39.1]} 4... g6 {[%clk 0:04:46.3]} 5. Bg2 {[%clk 0:04:37.9]}
5... Bg7 {[%clk 0:04:45.3]} 6. O-O {[%clk 0:04:35.8]} 6... O-O {[%clk
0:04:43.4]} 7. c3 {[%clk 0:04:34.5]} 7... d6 {[%clk 0:04:41.8]} 8. Re1 {[%clk
0:04:26.6]} 8... Bb7 {[%clk 0:04:39.6]} 9. e4 {[%clk 0:04:25.9]} 9... Nbd7
{[%clk 0:04:37.2]} 10. Qd3 {[%clk 0:04:18.5]} 10... a6 {[%clk 0:04:32.9]} 11. b4
{[%clk 0:04:15.4]} 11... Nb6 {[%clk 0:04:30.3]} 12. bxc5 {[%clk 0:03:46.7]}
12... dxc5 {[%clk 0:04:27.6]} 13. Be3 {[%clk 0:03:34.7]} 13... c4 {[%clk
0:04:21.8]} 14. Qc2 {[%clk 0:03:31.1]} 14... Ng4 {[%clk 0:04:16.9]} 15. h3
{[%clk 0:03:08.8]} 15... Nxe3 {[%clk 0:04:10.7]} 16. fxe3 {[%clk 0:03:07.5]}
16... b4 {[%clk 0:04:02.4]} 17. Nd4 {[%clk 0:02:50.4]} 17... bxc3 {[%clk
0:03:53.5]} 18. Nxc3 {[%clk 0:02:47.2]} 18... Qd6 {[%clk 0:03:50.1]} 19. Rab1
{[%clk 0:02:45.1]} 19... Rab8 {[%clk 0:03:35.4]} 20. Kh2 {[%clk 0:02:30.6]}
20... Be5 {[%clk 0:03:28.6]} 21. Nce2 {[%clk 0:02:28.8]} 21... Rfc8 {[%clk
0:03:12.6]} 22. Nf4 {[%clk 0:02:26.7]} 22... g5 {[%clk 0:03:04.3]} 23. Nf5
{[%clk 0:02:25.5]} 23... Qf6 {[%clk 0:02:48.6]} 24. Nh5 {[%clk 0:02:16]} 24...
Qg6 {[%clk 0:02:46.6]} 25. Nxe7+ {[%clk 0:02:12.9]} 25... Kf8 {[%clk 0:02:41.3]}
26. Nxg6+ {[%clk 0:02:11.5]} 26... hxg6 {[%clk 0:02:41.2]} 27. Nf6 {[%clk
0:02:02.3]} 27... Bxf6 {[%clk 0:02:39.7]} 28. Rxb6 {[%clk 0:02:01.2]} 1-0

[Event "Live Chess"]
[Site "Chess.com"]
[Date "2024.06.02"]
[Round "-"]
[White "CheckThis4"]
[Black "cymbalshift"]
[Result "1-0"]
[WhiteElo "2690"]
[BlackElo "1717"]
[TimeControl "300"]
[EndTime "16:24:05 PDT"]
[Termination "CheckThis4 won by resignation"]

1. d4 {[%clk 0:04:57.4]} 1... Nf6 {[%clk 0:04:58.3]} 2. Nc3 {[%clk 0:04:56.9]}
2... d6 {[%clk 0:04:56.5]} 3. e4 {[%clk 0:04:56.2]} 3... g6 {[%clk 0:04:56.2]}
4. Be3 {[%clk 0:04:54.1]} 4... Bg7 {[%clk 0:04:55.7]} 5. Qd2 {[%clk 0:04:53.6]}
5... O-O {[%clk 0:04:55.1]} 6. Bh6 {[%clk 0:04:53]} 6... c6 {[%clk 0:04:54]} 7.
h4 {[%clk 0:04:51.9]} 7... b5 {[%clk 0:04:50.1]} 8. f3 {[%clk 0:04:42]} 8... b4
{[%clk 0:04:35]} 9. Nce2 {[%clk 0:04:40.1]} 9... a5 {[%clk 0:04:24.8]} 10. h5
{[%clk 0:04:38.6]} 10... e5 {[%clk 0:04:12.3]} 11. hxg6 {[%clk 0:04:35.1]} 11...
fxg6 {[%clk 0:04:09.7]} 12. Bxg7 {[%clk 0:04:34.2]} 12... Kxg7 {[%clk
0:04:03.5]} 13. Qh6+ {[%clk 0:04:32.3]} 13... Kg8 {[%clk 0:04:02.4]} 14. O-O-O
{[%clk 0:04:30.6]} 14... Qe7 {[%clk 0:03:44.1]} 15. Nh3 {[%clk 0:04:19.7]} 15...
Qg7 {[%clk 0:03:17.2]} 16. Qe3 {[%clk 0:04:12.4]} 16... Be6 {[%clk 0:02:55.3]}
17. Kb1 {[%clk 0:04:06.4]} 17... a4 {[%clk 0:02:52.4]} 18. Ng5 {[%clk
0:04:04.6]} 18... Bc4 {[%clk 0:02:36.4]} 19. dxe5 {[%clk 0:04:00.2]} 19... dxe5
{[%clk 0:02:25.5]} 20. Nc1 {[%clk 0:03:58.8]} 20... b3 {[%clk 0:02:14.8]} 21.
Bxc4+ {[%clk 0:03:55.9]} 21... Kh8 {[%clk 0:02:07.9]} 22. cxb3 {[%clk
0:03:51.4]} 22... axb3 {[%clk 0:02:06.3]} 23. Bxb3 {[%clk 0:03:51]} 23... Nbd7
{[%clk 0:01:50.9]} 24. Ne6 {[%clk 0:03:47.8]} 1-0

[Event "Live Chess"]
[Site "Chess.com"]
[Date "2024.06.02"]
[Round "-"]
[White "Outspanner"]
[Black "KeithArkell"]
[Result "0-1"]
[WhiteElo "1509"]
[BlackElo "2405"]
[TimeControl "300"]
[EndTime "16:24:08 PDT"]
[Termination "KeithArkell won by resignation"]

1. Nf3 {[%clk 0:04:53.6]} 1... d6 {[%clk 0:04:58.8]} 2. c4 {[%clk 0:04:44.5]}
2... g6 {[%clk 0:04:57.5]} 3. g3 {[%clk 0:04:42]} 3... Bg7 {[%clk 0:04:55.8]} 4.
Bg2 {[%clk 0:04:41.4]} 4... Nf6 {[%clk 0:04:55.1]} 5. O-O {[%clk 0:04:40]} 5...
O-O {[%clk 0:04:54.2]} 6. Nc3 {[%clk 0:04:31.1]} 6... c5 {[%clk 0:04:53.2]} 7.
b3 {[%clk 0:04:27.8]} 7... Nc6 {[%clk 0:04:52.4]} 8. Bb2 {[%clk 0:04:26.9]} 8...
Bf5 {[%clk 0:04:50.2]} 9. d3 {[%clk 0:04:26]} 9... Qd7 {[%clk 0:04:49.6]} 10.
Nh4 {[%clk 0:04:18.9]} 10... Bh3 {[%clk 0:04:48.3]} 11. e3 {[%clk 0:03:57.4]}
11... Bxg2 {[%clk 0:04:47.2]} 12. Kxg2 {[%clk 0:03:53.3]} 12... d5 {[%clk
0:04:46.6]} 13. Nf3 {[%clk 0:03:46.6]} 13... Rfd8 {[%clk 0:04:41.6]} 14. Kg1
{[%clk 0:03:37.8]} 14... d4 {[%clk 0:04:38.3]} 15. exd4 {[%clk 0:03:34.3]} 15...
Nxd4 {[%clk 0:04:37.4]} 16. Re1 {[%clk 0:03:23]} 16... Qh3 {[%clk 0:04:32]} 17.
Ng5 {[%clk 0:02:40.2]} 17... Qf5 {[%clk 0:04:30]} 18. f4 {[%clk 0:01:54.8]}
18... h6 {[%clk 0:04:23.3]} 19. Nf3 {[%clk 0:01:47.4]} 19... Nxf3+ {[%clk
0:04:20.4]} 20. Qxf3 {[%clk 0:01:44.7]} 20... Rxd3 {[%clk 0:04:19.5]} 21. Qxb7
{[%clk 0:01:36.1]} 21... Rad8 {[%clk 0:04:15.9]} 22. Qxe7 {[%clk 0:01:28.2]}
22... Ng4 {[%clk 0:04:14.7]} 23. Qe4 {[%clk 0:01:23.5]} 23... Bxc3 {[%clk
0:04:10.4]} 24. Bxc3 {[%clk 0:00:59.4]} 24... Qxe4 {[%clk 0:04:09.1]} 25. Rxe4
{[%clk 0:00:57.8]} 25... Rxc3 {[%clk 0:04:08.5]} 26. Re2 {[%clk 0:00:50.7]}
26... Re3 {[%clk 0:04:03.9]} 27. Rae1 {[%clk 0:00:41.5]} 27... Rxe2 {[%clk
0:04:01.1]} 28. Rxe2 {[%clk 0:00:41.4]} 28... Kf8 {[%clk 0:03:57.9]} 29. h3
{[%clk 0:00:38.9]} 29... Nf6 {[%clk 0:03:57.1]} 30. Kf2 {[%clk 0:00:37]} 30...
Rd3 {[%clk 0:03:55.8]} 31. Re5 {[%clk 0:00:32]} 31... Rc3 {[%clk 0:03:54.9]} 32.
Rxc5 {[%clk 0:00:30.6]} 32... Ne4+ {[%clk 0:03:54.2]} 0-1

[Event "Live Chess"]
[Site "Chess.com"]
[Date "2024.06.02"]
[Round "-"]
[White "TheSmoulderingMaster"]
[Black "Cruiseylee78"]
[Result "1-0"]
[WhiteElo "1748"]
[BlackElo "1699"]
[TimeControl "300"]
[EndTime "16:24:11 PDT"]
[Termination "TheSmoulderingMaster won by resignation"]

1. e4 {[%clk 0:04:57.5]} 1... d6 {[%clk 0:04:59]} 2. d4 {[%clk 0:04:56.2]} 2...
Nd7 {[%clk 0:04:58.9]} 3. Nc3 {[%clk 0:04:55.4]} 3... e5 {[%clk 0:04:58]} 4. Nf3
{[%clk 0:04:53.9]} 4... c6 {[%clk 0:04:52.6]} 5. Bg5 {[%clk 0:04:52.2]} 5...
Ngf6 {[%clk 0:04:50.9]} 6. Qd2 {[%clk 0:04:50.1]} 6... h6 {[%clk 0:04:49.4]} 7.
Bh4 {[%clk 0:04:48.6]} 7... Be7 {[%clk 0:04:47.1]} 8. Bg3 {[%clk 0:04:47.4]}
8... Qc7 {[%clk 0:04:46.3]} 9. O-O-O {[%clk 0:04:45.4]} 9... b5 {[%clk
0:04:44.6]} 10. d5 {[%clk 0:04:43.5]} 10... Bb7 {[%clk 0:04:38.5]} 11. dxc6
{[%clk 0:04:41]} 11... Bxc6 {[%clk 0:04:38.1]} 12. Bxb5 {[%clk 0:04:37.4]} 12...
Rc8 {[%clk 0:04:35.4]} 13. Bxc6 {[%clk 0:04:35.6]} 13... Qxc6 {[%clk 0:04:35.3]}
14. Nd5 {[%clk 0:04:34.4]} 14... Nxd5 {[%clk 0:04:31.8]} 15. exd5 {[%clk
0:04:33.1]} 15... Qa4 {[%clk 0:04:25.8]} 16. Kb1 {[%clk 0:04:31.2]} 16... Rb8
{[%clk 0:04:19.3]} 17. b3 {[%clk 0:04:27.6]} 17... Nc5 {[%clk 0:04:16.4]} 18.
Nxe5 {[%clk 0:04:22.8]} 18... dxe5 {[%clk 0:04:12.6]} 19. Bxe5 {[%clk
0:04:20.4]} 19... f6 {[%clk 0:04:06.5]} 20. Bxb8 {[%clk 0:04:19.1]} 1-0

[Event "Live Chess"]
[Site "Chess.com"]
[Date "2024.06.02"]
[Round "-"]
[White "MaksymYurii"]
[Black "koekoekoe"]
[Result "0-1"]
[WhiteElo "952"]
[BlackElo "1965"]
[TimeControl "300"]
[EndTime "16:24:23 PDT"]
[Termination "koekoekoe won by checkmate"]

1. e4 {[%clk 0:04:53.4]} 1... d5 {[%clk 0:04:59.9]} 2. e5 {[%clk 0:04:51.7]}
2... c5 {[%clk 0:04:58.7]} 3. Nf3 {[%clk 0:04:49.9]} 3... Nc6 {[%clk 0:04:58.1]}
4. Bb5 {[%clk 0:04:47.7]} 4... Bg4 {[%clk 0:04:54]} 5. Bxc6+ {[%clk 0:04:44]}
5... bxc6 {[%clk 0:04:53]} 6. h3 {[%clk 0:04:42.4]} 6... Bh5 {[%clk 0:04:52]} 7.
g4 {[%clk 0:04:40]} 7... Bg6 {[%clk 0:04:50.9]} 8. d3 {[%clk 0:04:37.3]} 8... h5
{[%clk 0:04:49.1]} 9. g5 {[%clk 0:04:35.3]} 9... e6 {[%clk 0:04:44.2]} 10. h4
{[%clk 0:04:33.7]} 10... Ne7 {[%clk 0:04:41.7]} 11. d4 {[%clk 0:04:22.3]} 11...
Nf5 {[%clk 0:04:37.4]} 12. c3 {[%clk 0:04:07.3]} 12... Rb8 {[%clk 0:04:33.4]}
13. Na3 {[%clk 0:03:52.2]} 13... Qa5 {[%clk 0:04:22.5]} 14. dxc5 {[%clk
0:03:37.8]} 14... Bxc5 {[%clk 0:04:14.4]} 15. b4 {[%clk 0:03:35.4]} 15... Bxb4
{[%clk 0:04:13.4]} 16. cxb4 {[%clk 0:03:33.3]} 16... Qxb4+ {[%clk 0:04:12.5]}
17. Bd2 {[%clk 0:03:30.8]} 17... Qxa3 {[%clk 0:04:10.1]} 18. Rc1 {[%clk
0:03:21.5]} 18... Ne7 {[%clk 0:03:52.9]} 19. Nd4 {[%clk 0:03:13.9]} 19... O-O
{[%clk 0:03:45.5]} 20. Nxc6 {[%clk 0:03:10.5]} 20... Nxc6 {[%clk 0:03:41.4]} 21.
Rxc6 {[%clk 0:03:08.1]} 21... Rb1 {[%clk 0:03:34.1]} 22. Rc1 {[%clk 0:03:06.5]}
22... Rfb8 {[%clk 0:03:24.6]} 23. O-O {[%clk 0:03:00.6]} 23... Rxc1 {[%clk
0:03:12.4]} 24. Bxc1 {[%clk 0:02:57.5]} 24... Qxa2 {[%clk 0:03:09.3]} 25. Qd2
{[%clk 0:02:29.5]} 25... Qc4 {[%clk 0:02:41.9]} 26. Qa5 {[%clk 0:02:20.3]} 26...
Qg4+ {[%clk 0:02:37.4]} 27. Kh1 {[%clk 0:02:14.1]} 27... Be4+ {[%clk 0:02:34.3]}
28. Kh2 {[%clk 0:02:10.5]} 28... Qg2# {[%clk 0:02:32.9]} 0-1